Cogmind - Beta 13 @@@ ROGUE MODE // 2024.06.20 @ 20:46:03 Player: ExAnimoso Result: Destroyed by as-12752 with Assembled Rifle Performance ------------- Evolutions (0) 0 Regions Visited (2) 400 Robots Destroyed (23) 115 Value Destroyed (419) 419 Prototype IDs (0) 0 Alien Tech Used (0) 0 Bonus (60) 60 TOTAL SCORE: 994 Bonus ------- Follower Combat Kills 60 Cogmind --------- Core Integrity 0/250 Matter 298/300 Energy 249/250 System Corruption 0% Temperature Cool (0) Movement Hovering (300) Ox4 Location -10/Mines Parts ------- > --- POWER (1) -------- Ion Engine > --- PROPULSION (2) --- Hover Unit > --- UTILITY (2) ------ Large Storage Unit Seismic Detector > --- WEAPON (2) ------- Light Assault Rifle > --- INVENTORY (15) --- Hover Unit Flight Unit Flight Unit Flight Unit Flight Unit Huge Storage Unit Signal Interpreter Light Armor Plating Peak State ------------ > --- POWER ------------ Light Ion Engine > --- PROPULSION ------- Light Treads Light Treads > --- UTILITY ---------- Medium Storage Unit Seismic Detector > --- WEAPON ----------- EM Pulse Gun Small Laser > --- INVENTORY -------- Ion Engine Light Ion Engine Hover Unit Hover Unit Hover Unit Small Storage Unit Huge Storage Unit Signal Interpreter EM Pulse Gun Grenade Launcher [Rating: 8] Favorites ----------- Power Light Ion Engine Engine Light Ion Engine Propulsion Light Treads Treads Light Treads Leg Aluminum Leg Wheel Wheel Hover Unit Hover Unit Flight Unit Flight Unit Utility Seismic Detector Device Seismic Detector Storage Large Storage Unit Weapon EM Pulse Gun Energy Gun EM Pulse Gun Ballistic Gun Light Assault Rifle Launcher Grenade Launcher Special Weapon Mining Laser Build | -11 -10 -10 ------- Run | Yrd Mat Min Slots Evolved . | . . . Power . | . . . Propulsion . | . . . Utility . | . . . Weapon . | . . . Parts Attached 24 | 7 12 5 Power 3 | 1 1 1 Engine 3 | 1 1 1 Core . | . . . Reactor . | . . . Propulsion 10 | 2 6 2 Treads 4 | 2 2 . Leg 1 | . 1 . Wheel 1 | . 1 . Hover 3 | . 1 2 Flight 1 | . 1 . Utility 5 | 2 3 . Device 1 | 1 . . Storage 4 | 1 3 . Processor . | . . . Hackware . | . . . Protection . | . . . Artifact . | . . . Weapon 6 | 2 2 2 Energy Gun 3 | 2 1 . Energy Cannon . | . . . Ballistic Gun 1 | . 1 . Ballistic Cannon . | . . . Launcher 1 | . . 1 Special Weapon 1 | . . 1 Impact Weapon . | . . . Slashing Weapon . | . . . Piercing Weapon . | . . . Special Melee Weapon . | . . . Unidentified Prototypes . | . . . Parts Lost 9 | . 3 6 Power 1 | . 1 . Propulsion 3 | . . 3 Utility . | . . . Weapon 5 | . 2 3 Highest Loss Streak 3 | . 3 2 To Critical Strikes 1 | . . 1 Average Slot Usage (%) 94 | . 98 88 Engine 13 | . 13 14 Treads 19 | . 27 7 Hover 6 | . . 14 Device 14 | . 14 14 Storage 14 | . 14 14 Energy Gun 16 | . 27 1 Ballistic Gun 5 | . . 14 Launcher 3 | . . 7 Naked Turns . | . . . Heaviest Build 87 | 12 87 30 Greatest Support 40 | 40 40 40 Greatest Overweight (x) 6 | 1 6 2 Average Overweight (x) . | . . 1 Largest Inventory Capacity 25 | 8 25 15 Average Capacity 12 | 7 11 15 Most Carried 14 | 5 14 12 Average Carried 8 | 2 8 9 Final Capacity 15 | 8 15 15 Final Carried 12 | 3 12 8 Class Distribution -------------------- 100% | Mutant Dominant Class ---------------- Mutant | -10/Materials Mutant | -10/Mines Resources | -11 -10 -10 ----------- Run | Yrd Mat Min Matter Collected 514 | 270 110 134 Remotely . | . . . Salvage Created 715 | 30 586 99 Parts 53 | 6 43 4 Haulers Intercepted 1 | . 1 . Recyclers Shooed . | . . . Parts Field Recycled . | . . . Retrieved Matter . | . . . Parts Self-Destructed . | . . . Prevented . | . . . Kills | -11 -10 -10 ------- Run | Yrd Mat Min Combat Hostiles Destroyed 21 | . 12 9 Guns 15 | . 12 3 Cannons 1 | . . 1 AOE 5 | . . 5 Classes Destroyed 7 | 1 5 1 Tunneler 2 | 2 . . Hauler 1 | . 1 . Recycler 2 | . 2 . Operator 1 | . 1 . Swarmer 9 | . 6 3 Grunt 8 | . 6 2 Assembled 4 | . . 4 Best Kill Streak 4 | 2 4 4 Combat Bots Only 4 | . 3 4 Max Kills in Single Turn 2 | 1 1 2 Gunslinging . | . . . Exploded 1 | . . 1 Melee . | . . . Uniques/NPCs Destroyed . | . . . Combat | -11 -10 -10 -------- Run | Yrd Mat Min Hostile Shots Fired 123 | . 69 54 Missed 31 | . 19 12 Damage Taken 1098 | . 518 580 Core 254 | . 103 151 Absorbed by Shields . | . . . Core Remaining (%) 100 | 100 . . Volleys Fired 94 | 7 45 42 Largest 2 | 2 2 2 Hottest 120 | 80 80 120 Shots Fired 159 | 14 81 64 Gun 149 | 14 81 54 Cannon . | . . . Launcher 6 | . . 6 Special 4 | . . 4 Kinetic 42 | . . 42 Thermal 49 | 7 38 4 Explosive 6 | . . 6 Electromagnetic 62 | 7 43 12 Robot Hit Streak 11 | 3 11 8 Robot Miss Streak 3 | 3 3 3 Penetration Max . | . . . Secondary Targets 4 | . 4 . Max Gunslinging Chain 1 | . 1 . Shots Hit Robots 95 | 6 49 40 Core Hits 42 | 2 21 19 Critical Kills . | . . . Critical Parts Destroyed 1 | . . 1 Critical Strikes 1 | . . 1 Destroy 1 | . . 1 Melee Attacks . | . . . Impact . | . . . Slashing . | . . . Piercing . | . . . Sneak Attacks . | . . . Combat Hostiles . | . . . Follow-up Attacks . | . . . Damage Inflicted 1392 | 89 727 576 Guns 1079 | 89 682 308 Cannons . | . . . Explosions 261 | . 45 216 Melee . | . . . Ramming . | . . . Kinetic 210 | . . 210 Thermal 420 | 24 305 91 Explosive 177 | . . 177 Electromagnetic 585 | 65 422 98 Impact . | . . . Slashing . | . . . Piercing . | . . . Highest Corruption . | . . . Average Corruption . | . . . Corruption Purged . | . . . Corruption Blocked . | . . . Overload Shots . | . . . Overflow Damage 19 | . 3 16 Projectiles . | . . . Explosions 19 | . 3 16 Melee . | . . . Knockbacks . | . . . Impact . | . . . Kinetic . | . . . Secondary . | . . . Self-Inflicted Damage 103 | . 34 69 Shots 3 | . 1 2 Rammed . | . . . Targets Rammed . | . . . Kicked . | . . . Crushed . | . . . Highest Temperature 315 | 108 315 157 Average Temperature 78 | 50 102 47 Received Heat Transfer 264 | . 144 120 Effects 1 | . 1 . Short Circuit 1 | . 1 . Siege Activations . | . . . Robots Corrupted . | . . . Combat Hostiles . | . . . Parts Fried . | . . . Impact Corruptions . | . . . Robots Melted . | . . . Combat Hostiles . | . . . Parts Melted . | . . . Heat Transferred 750 | 50 550 150 Parts Sabotaged . | . . . Parts Stolen . | . . . Parts Stripped . | . . . Power Chain Reactions 2 | . 1 1 Alert | -11 -10 -10 ------- Run | Yrd Mat Min Peak Influence 174 | 10 140 174 Initial 46 | . 6 46 Average 64 | 3 67 69 Maximum Alert Level . | . . . Low Security (%) 100 | 100 100 100 Level 1 . | . . . Level 2 . | . . . Level 3 . | . . . Level 4 . | . . . Level 5 . | . . . High Security . | . . . Max Security . | . . . Squads Dispatched 2 | . 2 . Investigation 2 | . 2 . Extermination . | . . . Reinforcement . | . . . Assault . | . . . Garrison . | . . . Intercept . | . . . Searches Triggered . | . . . Construction Impeded . | . . . Haulers Reinforced . | . . . Active Scanning Responses . | . . . Cargo Convoy Interrupts . | . . . Stealth | -11 -10 -10 --------- Run | Yrd Mat Min Distress Signals 2 | . 2 . Communications Jammed . | . . . Distress Signals . | . . . Times Spotted 36 | . 19 17 Peak Tracking Total 5 | . 4 5 Tactical Retreats 1 | . 1 . Traps | -11 -10 -10 ------- Run | Yrd Mat Min Traps Triggered 2 | . 2 . Indirectly . | . . . Trap Hack Attempts . | . . . Triggered . | . . . Disarmed 3 | . 3 . Reprogrammed . | . . . Reused . | . . . Traps Extracted . | . . . Installed . | . . . Triggered 1 | . 1 . Machines | -11 -10 -10 ---------- Run | Yrd Mat Min Machines Disabled . | . . . Max in Single Turn . | . . . Machines Repaired . | . . . Machines Dismantled . | . . . Machines Sabotaged . | . . . Overloaded Fab Kills . | . . . Hacking | -11 -10 -10 --------- Run | Yrd Mat Min Machines Accessed 8 | . 8 . Terminals 6 | . 6 . Fabricators . | . . . Repair Stations . | . . . Recycling Units 2 | . 2 . Scanalyzers . | . . . Garrison Access . | . . . Total Hacks 17 | . 17 . Successful 4 | . 4 . Failed 12 | . 12 . Catastrophic 5 | . 5 . Database Lockouts 1 | . 1 . Manual 8 | . 8 . Terminals 13 | . 13 . Fabricators . | . . . Repair Stations . | . . . Recycling Units 4 | . 4 . Scanalyzers . | . . . Garrison Access . | . . . Terminal Hacks 3 | . 3 . Robot Analysis 1 | . 1 . Branch Access Points 1 | . 1 . Disarm Traps 1 | . 1 . Fabricator Hacks . | . . . Repair Station Hacks . | . . . Recycling Unit Hacks 1 | . 1 . Retrieve Components 1 | . 1 . Scanalyzer . | . . . Garrison Access Hacks . | . . . Unauthorized Hacks . | . . . Terminals . | . . . Fabricators . | . . . Repair Stations . | . . . Recycling Units . | . . . Scanalyzers . | . . . Garrison Access . | . . . Data Cores Recovered 1 | . 1 . Used 1 | . 1 . Hacking Detections 7 | . 7 . Full Trace Events 1 | . 1 . Feedback Events . | . . . Feedback Blocked . | . . . Robot Schematics Acquired . | . . . Robots Built . | . . . Authchips . | . . . Time . | . . . Total Robot Build Rating . | . . . Part Schematics Acquired . | . . . Parts Built . | . . . Authchips . | . . . Time . | . . . Total Part Build Rating . | . . . Parts Repaired . | . . . Time . | . . . Parts Recycled . | . . . Recycled Matter . | . . . Retrieved Matter . | . . . Retrieved Components 10 | . 10 . Parts Scanalyzed . | . . . Part Schematics Acquired . | . . . Parts Damaged . | . . . Bothacking | -11 -10 -10 ------------ Run | Yrd Mat Min Used RIF Installer . | . . . Robots Hacked . | . . . Non-combat . | . . . Combat . | . . . Robot Hacks Applied . | . . . Relay Couplers Released . | . . . Fabnet Peak Effective % . | . . . Robots Rewired . | . . . Allies Hacked . | . . . Hacks Repelled . | . . . Allies | -11 -10 -10 -------- Run | Yrd Mat Min Total Allies 4 | . . 4 Largest Group 3 | . . 3 Highest-Rated Group 40 | . . 40 Highest-Rated Ally 31 | . . 31 Total Orders . | . . . Ally Attacks 22 | . . 22 Total Damage 322 | . . 322 Kills 3 | . . 3 Allies Corrupted . | . . . Allies Melted . | . . . Intel | -11 -10 -10 ------- Run | Yrd Mat Min Robot Analysis Total 1 | . 1 . Derelict Logs Recovered . | . . . Drone Launches . | . . . Drone Recoveries . | . . . Exploration | -11 -10 -10 ------------- Run | Yrd Mat Min Turns Passed 1819 | 118 975 726 Spaces Moved 841 | 54 481 306 Core 14 | 14 . . Treads 637 | 40 477 120 Legs 1 | . 1 . Wheels 1 | . 1 . Hover 187 | . 1 186 Flight 1 | . 1 . Fastest Speed 50 | 50 110 160 Average Speed 171 | 137 161 191 Slowest Speed 540 | 160 540 240 Overloaded Moves . | . . . Propulsion Burnouts . | . . . Robots Hopped . | . . . Cave-ins Triggered . | . . . Exploration Rate (%) 39 | 5 59 55 Regions Visited 2 Branch Regions 1 Pre-discovered Areas . | . . . Known Exits Taken 1 | . 1 . Unknown Exits Taken 1 | 1 . . Scrap Searched 1 | . . 1 Spaces Dug . | . . . Terrain Destroyed 44 | . 6 38 Melee . | . . . Projectile 2 | . . 2 AOE 42 | . 6 36 Terrain Rammed . | . . . Walls Destroyed . | . . . Machines Disabled . | . . . Actions | -11 -10 -10 --------- Run | Yrd Mat Min Total 1066 | 85 599 382 Wait 69 | 6 35 28 Move 839 | 53 480 306 Hop . | . . . Pick Up 30 | 11 18 1 Fast Attach . | . . . Attach 17 | 7 5 5 Detach 1 | . 1 . Swap 7 | . 7 . Drop 9 | 1 8 . Fire 94 | 7 45 42 Melee . | . . . Ram . | . . . Kick . | . . . Crush . | . . . Escape Stasis . | . . . Rewire . | . . . Trap . | . . . Miscellaneous . | . . . Route ------- -11/Scrapyard -10/Materials (discovered 4 exits: [*Mat x2] / *Min x2) -10/Mines (discovered 1 exit: [*Mat]) History --------- Turn | Location | Event 7 | -11/Scrapyard | Discovered new exit (range 16) 119 | -11/Scrapyard | Entered Materials 237 | -10/Materials | Identified exit to Mines 310 | -10/Materials | Build established: Mutant 639 | -10/Materials | Discovered new exit (range 15) 645 | -10/Materials | Central database locked down 882 | -10/Materials | Discovered new exit (range 16) 1094 | -10/Materials | Entered Mines 1097 | -10/Mines | Received a Mining Laser from a helpful Derelict 1100 | -10/Mines | Lost 3 parts (1p2w) 1122 | -10/Mines | Discovered new exit (range 16) 1406 | -10/Mines | Core integrity fell below 50% 1446 | -10/Mines | Core integrity fell below 20% 1478 | -10/Mines | Found a hidden stash of uninstalled traps 1734 | -10/Mines | Assembled infested the area 1739 | -10/Mines | Assisted by a Guerilla fighting off Assembled 1745 | -10/Mines | Assisted by bots powering up and referring to "LRC-V3" 1785 | -10/Mines | Lost 4 allies 1820 | -10/Mines | Destroyed by as-12752 with Assembled Rifle Last Messages --------------- 01787_ U-05 Engineer lays Concrete. 01788_ R-06 Scavenger collects Lgt. Ion Engine. 01788_ U-05 Engineer lays Concrete. 01791_ Acquired 1 matter. 01791_ R-06 Scavenger collects Mni. Grenade Launcher. 01792_ U-05 Engineer lays Concrete. 01793_ Acquired 7 matter. 01794_ U-05 Engineer builds a Wall. 01795_ R-06 Scavenger collects Com. Wheel. 01796_ Searching scrap... 01796_ Found Hcp. Storage Unit. 01796_ Found Lrg. Matter Pod. 01796_ Found 20 Matter. 01798_ The unstable cave ceiling collapses. 01808_ Hover Unit destroyed. 01810_ U-05 Engineer lays Concrete. 01813_ U-05 Engineer destroyed. 01818_ Critical hit (Destroy). 01818_ Grenade Launcher destroyed. Map ----- +----------------------------------------------------+ | ????????????????????????????????????????? | | ????????????????????????????????????????? | | ????????????????????????????????????????? | | ????????????????????????????????????????? | | ????????????????????????????????????????? | | ????????????????????????????????????????? | | ????????????????????????????????????????? | | ????????????????????????????????????????? | | ????????????????????????????????????????? | | ##??????????????????????????????????????? | | ##?????????????????????????????????????? | | ###???????????????????????????????????? | | ##??????????????????????????????????? | | ##?????????????????????????????????? | | #??????????????????????????? #????? | | #?????????????????????????? #????? | | ##???????????????????????### #????? | | # ##??????????????????????? ?????? | | #####??###??????????????????? ??????? | | ?????### ######?????????????| %!#???????? | | ####?# # #####?????????% ##??????? | | #??# !* ######### #??????? | | ## #??# %[%# # ## ##?????? | | ?# #??# ! = # #? ##????? | | ?# #??## # # ##aa #????? | | ?# #???# %=% a@ #???? | | ?# #???# == !!### #???? | | ## #???# =!!% # #????# ## #???? | | ## #####%* ]# # # ##???????#???????? | | %= #### #????????????????? | | ######## ! ###????????????????? | | #??????# # #??????????????????? | | ???????########## ?????????????????? | | ????????????????# ????????????????? | | ????????????????#########???????????????? | | ????????????????????????????????????????? | | ????????????????????????????????????????? | | | | | | | | | | | | | | | | | | | | | | | | | | | +----------------------------------------------------+ Best States ------------- Heat Dissipation 25 Energy Generation 10 Energy Capacity 250 Matter Stores 300 Matter Capacity 300 Sight Range 16 Terrain Scan Density 10 Evasion (%) 40 Recoil Reduction 2 Item Schematics ----------------- None Robot Schematics ------------------ None Fabricated ------------ Nothing Alien Tech Used ----------------- None Achievements -------------- Dramatic Entrance Let's See Who's Tougher Universal Adapter Challenges ------------ None Game ------ Seed ArmorImpactFilter Manual? 0 Play Time 00:19:52 Cumulative 6.5 hours Start 2024.06.20 @ 20:05:33 End 2024.06.20 @ 20:46:03 Sessions 2 Manual Loads 0 Difficulty Rogue Special Mode None Game No. 6 Rogue 4 Adventurer 0 Explorer 2 Win Type - Total 0 Types 0/0/0/0/0/0/0/0/0 Lore% 16 Gallery% 12 Achievement% 18 Wizard Run 0 Options --------- Layout 1 ASCII 0 Keyboard 0 Movement Mouse Keybinds 0 Fullscreen 2 Font 24/Smallcaps Map View 50x35 Zoom Use 0% Tactical HUD 1 Map Filters NONE Filters NONE Steam 1 RUN: 09149b22-e6f1-49c6-9420-ff5f3be3913a